[Event "Late-Titled-Tuesday-Blitz-January-30-2024"]
[Site "Chess.com"]
[Date "2024.01.30"]
[Round "2"]
[White "SHIVACalypso"]
[Black "The_Machine04"]
[Result "1/2-1/2"]
[WhiteElo "2456"]
[BlackElo "2728"]
[TimeControl "180+1"]
[EndTime "14:18:08 PST"]
[Termination "Game drawn - insufficient material"]

1. Nf3 {[%clk 0:03:00.1]} 1... Nf6 {[%clk 0:02:58.8]} 2. c4 {[%clk 0:03:00.7]}
2... e6 {[%clk 0:02:59]} 3. g3 {[%clk 0:03:01.3]} 3... d5 {[%clk 0:02:59.5]} 4.
Bg2 {[%clk 0:03:02]} 4... dxc4 {[%clk 0:03:00.1]} 5. Qa4+ {[%clk 0:03:00.5]}
5... Bd7 {[%clk 0:02:57.7]} 6. Qxc4 {[%clk 0:03:00.3]} 6... c5 {[%clk
0:02:58.5]} 7. Ne5 {[%clk 0:02:59]} 7... Qc8 {[%clk 0:02:58.8]} 8. O-O {[%clk
0:02:56.4]} 8... Nc6 {[%clk 0:02:58.7]} 9. Nxd7 {[%clk 0:02:56.4]} 9... Qxd7
{[%clk 0:02:59.6]} 10. b3 {[%clk 0:02:54.6]} 10... Be7 {[%clk 0:02:57.7]} 11.
Bb2 {[%clk 0:02:54.4]} 11... O-O {[%clk 0:02:58.2]} 12. e3 {[%clk 0:02:51.8]}
12... Rfd8 {[%clk 0:02:56.6]} 13. Rd1 {[%clk 0:02:47.9]} 13... Rac8 {[%clk
0:02:54.7]} 14. d3 {[%clk 0:02:47.9]} 14... Nd5 {[%clk 0:02:44.2]} 15. a3 {[%clk
0:02:45]} 15... Na5 {[%clk 0:02:30.9]} 16. Qc2 {[%clk 0:02:43.6]} 16... Qb5
{[%clk 0:02:29.1]} 17. Nd2 {[%clk 0:02:42.1]} 17... Nf6 {[%clk 0:02:20.6]} 18.
Bf1 {[%clk 0:02:41.8]} 18... Qd7 {[%clk 0:02:09.7]} 19. Nc4 {[%clk 0:02:39.7]}
19... Nc6 {[%clk 0:02:06.4]} 20. Rac1 {[%clk 0:02:37.3]} 20... b5 {[%clk
0:02:05.2]} 21. Nd2 {[%clk 0:02:37.3]} 21... a6 {[%clk 0:02:03.5]} 22. Qb1
{[%clk 0:02:37.3]} 22... Bf8 {[%clk 0:01:59.2]} 23. Qa1 {[%clk 0:02:35.2]} 23...
Nd5 {[%clk 0:01:59.4]} 24. Ne4 {[%clk 0:02:31.6]} 24... Na5 {[%clk 0:01:59.1]}
25. Qa2 {[%clk 0:02:27.4]} 25... f5 {[%clk 0:01:56.3]} 26. Nc3 {[%clk
0:02:23.8]} 26... Qf7 {[%clk 0:01:50.4]} 27. e4 {[%clk 0:02:18.9]} 27... Nf6
{[%clk 0:01:40.3]} 28. e5 {[%clk 0:02:17]} 28... Nd5 {[%clk 0:01:36.9]} 29. Nxd5
{[%clk 0:02:17.3]} 29... Rxd5 {[%clk 0:01:21.6]} 30. Bg2 {[%clk 0:02:14.9]}
30... Rdd8 {[%clk 0:01:21.5]} 31. d4 {[%clk 0:02:08.4]} 31... cxd4 {[%clk
0:01:13.5]} 32. Rxc8 {[%clk 0:02:06]} 32... Rxc8 {[%clk 0:01:13.4]} 33. Bxd4
{[%clk 0:02:05.8]} 33... Qe7 {[%clk 0:01:01.8]} 34. b4 {[%clk 0:02:03.5]} 34...
Nc4 {[%clk 0:01:00.3]} 35. Bc5 {[%clk 0:02:03.7]} 35... Qc7 {[%clk 0:00:57]} 36.
Bxf8 {[%clk 0:01:59.1]} 36... Rxf8 {[%clk 0:00:56.5]} 37. a4 {[%clk 0:01:55.2]}
37... Qxe5 {[%clk 0:00:54.2]} 38. axb5 {[%clk 0:01:55.2]} 38... axb5 {[%clk
0:00:54.8]} 39. Qa7 {[%clk 0:01:48.8]} 39... h6 {[%clk 0:00:46.3]} 40. Rd7
{[%clk 0:01:43.7]} 40... Kh8 {[%clk 0:00:42.3]} 41. Bf1 {[%clk 0:01:35]} 41...
f4 {[%clk 0:00:37.5]} 42. Qc5 {[%clk 0:01:20.7]} 42... Qxc5 {[%clk 0:00:33.4]}
43. bxc5 {[%clk 0:01:21.6]} 43... fxg3 {[%clk 0:00:30.2]} 44. hxg3 {[%clk
0:01:19.9]} 44... Rc8 {[%clk 0:00:29.7]} 45. Re7 {[%clk 0:01:12]} 45... Rxc5
{[%clk 0:00:20.5]} 46. Rxe6 {[%clk 0:01:12.2]} 46... Kg8 {[%clk 0:00:19.7]} 47.
Re8+ {[%clk 0:01:09.6]} 47... Kf7 {[%clk 0:00:19.6]} 48. Rb8 {[%clk 0:01:10.3]}
48... Kf6 {[%clk 0:00:18.6]} 49. Rb7 {[%clk 0:01:05.5]} 49... h5 {[%clk
0:00:17.2]} 50. Kg2 {[%clk 0:01:05.6]} 50... g5 {[%clk 0:00:17.4]} 51. Be2
{[%clk 0:01:05.2]} 51... g4 {[%clk 0:00:17.7]} 52. Bd3 {[%clk 0:01:00.3]} 52...
Nd6 {[%clk 0:00:17.3]} 53. Rb6 {[%clk 0:00:59.4]} 53... Ke5 {[%clk 0:00:17.1]}
54. Kf1 {[%clk 0:01:00]} 54... Rc1+ {[%clk 0:00:16.6]} 55. Ke2 {[%clk
0:00:59.6]} 55... Rc5 {[%clk 0:00:17.2]} 56. Rb8 {[%clk 0:00:57]} 56... Kd4
{[%clk 0:00:16.2]} 57. Rd8 {[%clk 0:00:54.2]} 57... Re5+ {[%clk 0:00:16.4]} 58.
Kd2 {[%clk 0:00:53.5]} 58... Rd5 {[%clk 0:00:17.3]} 59. Kc2 {[%clk 0:00:47.9]}
59... Nc4 {[%clk 0:00:16.1]} 60. Rxd5+ {[%clk 0:00:46.1]} 60... Kxd5 {[%clk
0:00:17]} 61. Bg6 {[%clk 0:00:45.7]} 61... Ne5 {[%clk 0:00:16.8]} 62. Bxh5
{[%clk 0:00:45.1]} 62... Ke4 {[%clk 0:00:17.1]} 63. Kc3 {[%clk 0:00:43]} 63...
Kf3 {[%clk 0:00:16.1]} 64. Kb4 {[%clk 0:00:38.9]} 64... Kxf2 {[%clk 0:00:14.7]}
65. Kxb5 {[%clk 0:00:39.5]} 65... Kxg3 {[%clk 0:00:15]} 66. Bxg4 {[%clk
0:00:40.1]} 1/2-1/2

[Event "Late-Titled-Tuesday-Blitz-January-30-2024"]
[Site "Chess.com"]
[Date "2024.01.30"]
[Round "2"]
[White "Oleksandr_Bortnyk"]
[Black "M1711"]
[Result "1-0"]
[WhiteElo "3101"]
[BlackElo "2670"]
[TimeControl "180+1"]
[EndTime "14:18:09 PST"]
[Termination "Oleksandr_Bortnyk won on time"]

1. e4 {[%clk 0:03:00.9]} 1... e5 {[%clk 0:02:59.9]} 2. Bc4 {[%clk 0:02:53.6]}
2... Nf6 {[%clk 0:02:57.8]} 3. d3 {[%clk 0:02:53.6]} 3... c6 {[%clk 0:02:57.4]}
4. Nf3 {[%clk 0:02:53.4]} 4... d5 {[%clk 0:02:56.9]} 5. Bb3 {[%clk 0:02:53.6]}
5... Bb4+ {[%clk 0:02:56.3]} 6. Bd2 {[%clk 0:02:53.4]} 6... Bxd2+ {[%clk
0:02:55.3]} 7. Qxd2 {[%clk 0:02:53.5]} 7... O-O {[%clk 0:02:46.7]} 8. exd5
{[%clk 0:02:39.5]} 8... cxd5 {[%clk 0:02:30.8]} 9. Nxe5 {[%clk 0:02:38.9]} 9...
Re8 {[%clk 0:02:29.8]} 10. d4 {[%clk 0:02:38.7]} 10... Nc6 {[%clk 0:02:23.4]}
11. O-O {[%clk 0:02:38.4]} 11... Nxe5 {[%clk 0:02:21.6]} 12. dxe5 {[%clk
0:02:39.3]} 12... Rxe5 {[%clk 0:02:22.2]} 13. Nc3 {[%clk 0:02:35.9]} 13... Bf5
{[%clk 0:02:18.3]} 14. Rfe1 {[%clk 0:02:19.1]} 14... Rxe1+ {[%clk 0:02:12]} 15.
Rxe1 {[%clk 0:02:20]} 15... d4 {[%clk 0:02:09.6]} 16. Nb5 {[%clk 0:02:16.3]}
16... d3 {[%clk 0:02:08.4]} 17. cxd3 {[%clk 0:01:38.2]} 17... Qxd3 {[%clk
0:01:49.4]} 18. Qxd3 {[%clk 0:01:35.8]} 18... Bxd3 {[%clk 0:01:50.3]} 19. Nd6
{[%clk 0:01:36.2]} 19... Bg6 {[%clk 0:01:42.6]} 20. Nxb7 {[%clk 0:01:30.5]}
20... Kf8 {[%clk 0:01:30.5]} 21. f3 {[%clk 0:01:29.3]} 21... Rc8 {[%clk
0:01:17.7]} 22. Kf2 {[%clk 0:01:25.9]} 22... h5 {[%clk 0:01:12.2]} 23. Re5
{[%clk 0:01:23.2]} 23... Bc2 {[%clk 0:01:06.5]} 24. Rc5 {[%clk 0:01:05.1]} 24...
Rxc5 {[%clk 0:00:54.4]} 25. Nxc5 {[%clk 0:01:06]} 25... Bxb3 {[%clk 0:00:54.7]}
26. Nxb3 {[%clk 0:01:06.9]} 26... Ke7 {[%clk 0:00:54.6]} 27. Nd4 {[%clk
0:01:05.4]} 27... Nd5 {[%clk 0:00:35.5]} 28. Nc6+ {[%clk 0:01:01.5]} 28... Kd6
{[%clk 0:00:34.2]} 29. Nxa7 {[%clk 0:01:02.4]} 29... Nb4 {[%clk 0:00:34.4]} 30.
a3 {[%clk 0:00:51]} 30... Nd3+ {[%clk 0:00:34.2]} 31. Kg3 {[%clk 0:00:51.9]}
31... Nxb2 {[%clk 0:00:33.7]} 32. Kh4 {[%clk 0:00:52.6]} 32... Nd3 {[%clk
0:00:31]} 33. a4 {[%clk 0:00:42.3]} 33... Kc5 {[%clk 0:00:25]} 34. a5 {[%clk
0:00:42.9]} 34... Kb4 {[%clk 0:00:17.7]} 35. Nc6+ {[%clk 0:00:42.8]} 35... Kb5
{[%clk 0:00:17.8]} 36. Nd8 {[%clk 0:00:42.1]} 36... f6 {[%clk 0:00:06.5]} 37.
Ne6 {[%clk 0:00:40.2]} 37... g6 {[%clk 0:00:06.1]} 38. Nf8 {[%clk 0:00:28.8]}
38... Nf4 {[%clk 0:00:06.5]} 39. Nxg6 {[%clk 0:00:22.3]} 39... Nxg6+ {[%clk
0:00:06.2]} 40. Kxh5 {[%clk 0:00:23.2]} 40... Nf4+ {[%clk 0:00:06.9]} 41. Kg4
{[%clk 0:00:23.9]} 41... Nxg2 {[%clk 0:00:07.3]} 42. h4 {[%clk 0:00:24.5]} 42...
Ne3+ {[%clk 0:00:05.5]} 43. Kf4 {[%clk 0:00:25]} 43... Ng2+ {[%clk 0:00:05.7]}
44. Kg3 {[%clk 0:00:23.8]} 44... Ne3 {[%clk 0:00:06]} 45. h5 {[%clk 0:00:20.5]}
45... Nf5+ {[%clk 0:00:06.1]} 46. Kf4 {[%clk 0:00:21.2]} 46... Nh6 {[%clk
0:00:06.5]} 47. Ke4 {[%clk 0:00:21.6]} 47... Kxa5 {[%clk 0:00:06.7]} 48. Kd5
{[%clk 0:00:22.5]} 48... Kb5 {[%clk 0:00:06.9]} 49. Ke6 {[%clk 0:00:23.4]} 49...
Kc5 {[%clk 0:00:03.2]} 50. Kxf6 {[%clk 0:00:23]} 50... Kd6 {[%clk 0:00:04]} 51.
Kg6 {[%clk 0:00:21.3]} 51... Ng8 {[%clk 0:00:03.9]} 52. h6 {[%clk 0:00:20.6]}
52... Ke6 {[%clk 0:00:02.1]} 53. h7 {[%clk 0:00:20.2]} 53... Ne7+ {[%clk
0:00:02.1]} 54. Kg5 {[%clk 0:00:19.9]} 54... Nd5 {[%clk 0:00:01.7]} 55. h8=Q
{[%clk 0:00:20.1]} 1-0

[Event "Late-Titled-Tuesday-Blitz-January-30-2024"]
[Site "Chess.com"]
[Date "2024.01.30"]
[Round "2"]
[White "TheNextLevelFan"]
[Black "h4parah5"]
[Result "0-1"]
[WhiteElo "2594"]
[BlackElo "2902"]
[TimeControl "180+1"]
[EndTime "14:18:12 PST"]
[Termination "h4parah5 won by resignation"]

1. e4 {[%clk 0:03:00.9]} 1... c5 {[%clk 0:02:58.9]} 2. c3 {[%clk 0:03:00.6]}
2... Nf6 {[%clk 0:02:57.7]} 3. e5 {[%clk 0:03:00.6]} 3... Nd5 {[%clk 0:02:58.3]}
4. Nf3 {[%clk 0:03:00.8]} 4... d6 {[%clk 0:02:57.8]} 5. d4 {[%clk 0:02:58.7]}
5... cxd4 {[%clk 0:02:56.6]} 6. cxd4 {[%clk 0:02:58.3]} 6... Nc6 {[%clk
0:02:56.4]} 7. Bc4 {[%clk 0:02:57]} 7... Nb6 {[%clk 0:02:53.1]} 8. Bb5 {[%clk
0:02:54.9]} 8... dxe5 {[%clk 0:02:51.2]} 9. Nxe5 {[%clk 0:02:54.4]} 9... Bd7
{[%clk 0:02:51]} 10. Nxd7 {[%clk 0:02:46.2]} 10... Qxd7 {[%clk 0:02:51.9]} 11.
O-O {[%clk 0:02:43.2]} 11... e6 {[%clk 0:02:51.6]} 12. Nc3 {[%clk 0:02:41.4]}
12... a6 {[%clk 0:02:49]} 13. Bxc6 {[%clk 0:02:37.9]} 13... Qxc6 {[%clk
0:02:49.9]} 14. Qg4 {[%clk 0:02:34.9]} 14... h5 {[%clk 0:02:48.6]} 15. Qh4
{[%clk 0:02:29.6]} 15... Be7 {[%clk 0:02:38.4]} 16. Bg5 {[%clk 0:02:27.5]} 16...
f6 {[%clk 0:02:36.7]} 17. Be3 {[%clk 0:02:17.2]} 17... g5 {[%clk 0:02:34.6]} 18.
d5 {[%clk 0:01:59.8]} 18... Nxd5 {[%clk 0:02:29.5]} 19. Qe4 {[%clk 0:01:56.2]}
19... f5 {[%clk 0:01:59.3]} 20. Qd3 {[%clk 0:01:40.1]} 20... Rd8 {[%clk
0:01:57.7]} 21. Nxd5 {[%clk 0:01:34.8]} 21... Rxd5 {[%clk 0:01:53.1]} 22. Qb3
{[%clk 0:01:35.2]} 22... Kf7 {[%clk 0:01:46.6]} 23. a4 {[%clk 0:01:15.2]} 23...
Rc8 {[%clk 0:01:33.3]} 24. Rfe1 {[%clk 0:01:05.6]} 24... f4 {[%clk 0:01:23.2]}
25. Bb6 {[%clk 0:01:05.4]} 25... Qc4 {[%clk 0:01:05.6]} 26. Qf3 {[%clk
0:01:04.9]} 26... g4 {[%clk 0:01:03.6]} 27. Qe4 {[%clk 0:01:03.2]} 27... Qxe4
{[%clk 0:01:01.4]} 28. Rxe4 {[%clk 0:01:04.1]} 28... e5 {[%clk 0:01:00]} 29. g3
{[%clk 0:01:00]} 29... Rc6 {[%clk 0:00:49.6]} 30. a5 {[%clk 0:00:58.6]} 30...
Bd6 {[%clk 0:00:49.1]} 31. h3 {[%clk 0:00:46]} 31... Rd2 {[%clk 0:00:35.1]} 32.
gxf4 {[%clk 0:00:37.2]} 32... exf4 {[%clk 0:00:34.2]} 33. hxg4 {[%clk
0:00:37.4]} 33... hxg4 {[%clk 0:00:35.1]} 34. Bd4 {[%clk 0:00:34.8]} 34... Rc4
{[%clk 0:00:32.7]} 35. Bc3 {[%clk 0:00:32.7]} 35... Rxe4 {[%clk 0:00:31.1]} 36.
Bxd2 {[%clk 0:00:33.1]} 36... Re2 {[%clk 0:00:31.7]} 37. Rd1 {[%clk 0:00:28.4]}
37... Bc5 {[%clk 0:00:25.4]} 38. Be1 {[%clk 0:00:24.9]} 38... g3 {[%clk
0:00:24.2]} 39. Kf1 {[%clk 0:00:24.6]} 39... Rxb2 {[%clk 0:00:17.3]} 40. fxg3
{[%clk 0:00:25]} 40... f3 {[%clk 0:00:16.4]} 41. Rd3 {[%clk 0:00:24.8]} 41... f2
{[%clk 0:00:16.7]} 42. Rf3+ {[%clk 0:00:24.9]} 42... Ke6 {[%clk 0:00:16.4]} 43.
Bxf2 {[%clk 0:00:25.8]} 43... Bxf2 {[%clk 0:00:12.8]} 44. Rxf2 {[%clk
0:00:26.1]} 44... Rb5 {[%clk 0:00:13]} 45. Kg2 {[%clk 0:00:22]} 45... Rxa5
{[%clk 0:00:12.4]} 46. g4 {[%clk 0:00:22.6]} 46... Re5 {[%clk 0:00:11.5]} 47.
Kg3 {[%clk 0:00:22.7]} 47... a5 {[%clk 0:00:11.9]} 48. Kh4 {[%clk 0:00:22]}
48... a4 {[%clk 0:00:12.4]} 49. g5 {[%clk 0:00:22.3]} 49... b5 {[%clk
0:00:12.9]} 50. Kh5 {[%clk 0:00:22.6]} 50... Kd5 {[%clk 0:00:13.3]} 51. Kh6
{[%clk 0:00:20.8]} 51... a3 {[%clk 0:00:13.5]} 52. g6 {[%clk 0:00:21.3]} 52...
Re8 {[%clk 0:00:12.5]} 53. g7 {[%clk 0:00:20.5]} 53... Rg8 {[%clk 0:00:13]} 54.
Kh7 {[%clk 0:00:21.4]} 54... Rxg7+ {[%clk 0:00:12.9]} 55. Kxg7 {[%clk
0:00:22.3]} 55... b4 {[%clk 0:00:13.5]} 56. Kf6 {[%clk 0:00:14]} 56... b3 {[%clk
0:00:13]} 0-1

[Event "Late-Titled-Tuesday-Blitz-January-30-2024"]
[Site "Chess.com"]
[Date "2024.01.30"]
[Round "2"]
[White "Bkmzzzzz"]
[Black "GaiozNigalidze"]
[Result "0-1"]
[WhiteElo "2348"]
[BlackElo "2709"]
[TimeControl "180+1"]
[EndTime "14:18:14 PST"]
[Termination "GaiozNigalidze won by checkmate"]

1. e4 {[%clk 0:03:00.9]} 1... c5 {[%clk 0:02:59.6]} 2. Nf3 {[%clk 0:03:00.8]}
2... d6 {[%clk 0:03:00.3]} 3. d4 {[%clk 0:03:01]} 3... cxd4 {[%clk 0:03:01.2]}
4. Qxd4 {[%clk 0:03:01.2]} 4... Nc6 {[%clk 0:03:00.1]} 5. Bb5 {[%clk 0:03:00.9]}
5... Bd7 {[%clk 0:03:00.5]} 6. Qd3 {[%clk 0:02:59.8]} 6... Nf6 {[%clk 0:02:56]}
7. Nc3 {[%clk 0:02:57.7]} 7... g6 {[%clk 0:02:54.7]} 8. Bg5 {[%clk 0:02:56.5]}
8... Bg7 {[%clk 0:02:53.7]} 9. O-O-O {[%clk 0:02:57.2]} 9... a6 {[%clk 0:02:24]}
10. Bxc6 {[%clk 0:02:52.6]} 10... Bxc6 {[%clk 0:02:13.3]} 11. e5 {[%clk
0:02:15.1]} 11... dxe5 {[%clk 0:02:12.5]} 12. Qxd8+ {[%clk 0:02:13.8]} 12...
Rxd8 {[%clk 0:02:13.4]} 13. Rxd8+ {[%clk 0:02:13.7]} 13... Kxd8 {[%clk
0:02:14.3]} 14. Nxe5 {[%clk 0:02:14]} 14... Kc8 {[%clk 0:01:56.6]} 15. f3 {[%clk
0:02:09.4]} 15... Rf8 {[%clk 0:01:50.8]} 16. Nxc6 {[%clk 0:02:02.6]} 16... bxc6
{[%clk 0:01:50.7]} 17. Re1 {[%clk 0:01:58.4]} 17... h6 {[%clk 0:01:38.5]} 18.
Be3 {[%clk 0:01:50.1]} 18... Nd7 {[%clk 0:01:14.2]} 19. Na4 {[%clk 0:01:44.8]}
19... Re8 {[%clk 0:01:10.2]} 20. Nc5 {[%clk 0:01:24.1]} 20... Nxc5 {[%clk
0:01:05.6]} 21. Bxc5 {[%clk 0:01:25]} 21... e6 {[%clk 0:01:03.7]} 22. c4 {[%clk
0:01:24.3]} 22... Rd8 {[%clk 0:01:00.9]} 23. Kc2 {[%clk 0:01:18.4]} 23... g5
{[%clk 0:00:55]} 24. b3 {[%clk 0:01:14.5]} 24... Bd4 {[%clk 0:00:51.3]} 25. Bxd4
{[%clk 0:00:47.7]} 25... Rxd4 {[%clk 0:00:52.2]} 26. Rd1 {[%clk 0:00:48.3]}
26... Rh4 {[%clk 0:00:49.5]} 27. h3 {[%clk 0:00:47.4]} 27... h5 {[%clk 0:00:47]}
28. Kc3 {[%clk 0:00:41.5]} 28... g4 {[%clk 0:00:47.2]} 29. hxg4 {[%clk 0:00:32]}
29... hxg4 {[%clk 0:00:47.4]} 30. Rd4 {[%clk 0:00:32.2]} 30... f5 {[%clk
0:00:33.3]} 31. fxg4 {[%clk 0:00:31.3]} 31... e5 {[%clk 0:00:14.3]} 32. Rd6
{[%clk 0:00:26.6]} 32... Rxg4 {[%clk 0:00:13.1]} 33. Rxc6+ {[%clk 0:00:27]}
33... Kd7 {[%clk 0:00:13.4]} 34. Rxa6 {[%clk 0:00:24.4]} 34... Rg3+ {[%clk
0:00:13.8]} 35. Kb4 {[%clk 0:00:23]} 35... e4 {[%clk 0:00:13.6]} 36. Rf6 {[%clk
0:00:21.3]} 36... Rg5 {[%clk 0:00:10.5]} 37. Kc3 {[%clk 0:00:21.1]} 37... Ke7
{[%clk 0:00:10.9]} 38. Rh6 {[%clk 0:00:20.6]} 38... Rxg2 {[%clk 0:00:09.9]} 39.
Kd4 {[%clk 0:00:19.7]} 39... Rxa2 {[%clk 0:00:07.8]} 40. Ke3 {[%clk 0:00:15.7]}
40... Rb2 {[%clk 0:00:06.6]} 41. Kf4 {[%clk 0:00:16.1]} 41... Rf2+ {[%clk
0:00:06.5]} 42. Ke5 {[%clk 0:00:14.1]} 42... e3 {[%clk 0:00:05.6]} 43. Rh1
{[%clk 0:00:14.5]} 43... e2 {[%clk 0:00:04.7]} 44. Re1 {[%clk 0:00:13.9]} 44...
f4 {[%clk 0:00:05.2]} 45. Ke4 {[%clk 0:00:13.9]} 45... f3 {[%clk 0:00:05.6]} 46.
Ke3 {[%clk 0:00:12.3]} 46... Rf1 {[%clk 0:00:04.9]} 47. Kd2 {[%clk 0:00:11.6]}
47... Kd6 {[%clk 0:00:05]} 48. b4 {[%clk 0:00:11.4]} 48... Ke5 {[%clk 0:00:05]}
49. b5 {[%clk 0:00:11.8]} 49... Kd4 {[%clk 0:00:04.9]} 50. b6 {[%clk 0:00:11.6]}
50... Rxe1 {[%clk 0:00:05.2]} 51. Kxe1 {[%clk 0:00:11.6]} 51... Ke3 {[%clk
0:00:05.7]} 52. b7 {[%clk 0:00:11.1]} 52... f2# {[%clk 0:00:06.6]} 0-1

[Event "Late-Titled-Tuesday-Blitz-January-30-2024"]
[Site "Chess.com"]
[Date "2024.01.30"]
[Round "2"]
[White "melissa_guez"]
[Black "sjoerd893"]
[Result "0-1"]
[WhiteElo "2250"]
[BlackElo "2509"]
[TimeControl "180+1"]
[EndTime "14:18:14 PST"]
[Termination "sjoerd893 won by resignation"]

1. e4 {[%clk 0:03:00.9]} 1... c5 {[%clk 0:02:59.2]} 2. Nf3 {[%clk 0:03:00.5]}
2... Nc6 {[%clk 0:02:58.9]} 3. Bb5 {[%clk 0:02:58.9]} 3... g6 {[%clk 0:02:57.5]}
4. Bxc6 {[%clk 0:02:58.8]} 4... dxc6 {[%clk 0:02:58.4]} 5. d3 {[%clk 0:02:56.3]}
5... Bg7 {[%clk 0:02:57.5]} 6. h3 {[%clk 0:02:52.2]} 6... Nf6 {[%clk 0:02:57.4]}
7. O-O {[%clk 0:02:51.2]} 7... Nd7 {[%clk 0:02:56.8]} 8. Nc3 {[%clk 0:02:49]}
8... e5 {[%clk 0:02:53.3]} 9. Be3 {[%clk 0:02:48.6]} 9... b6 {[%clk 0:02:52.1]}
10. Qd2 {[%clk 0:02:48.6]} 10... h6 {[%clk 0:02:51.1]} 11. Ne2 {[%clk
0:02:44.2]} 11... Nf8 {[%clk 0:02:50.5]} 12. a4 {[%clk 0:02:40.4]} 12... a5
{[%clk 0:02:48.8]} 13. c3 {[%clk 0:02:38.2]} 13... Ne6 {[%clk 0:02:48.4]} 14. d4
{[%clk 0:02:27.2]} 14... cxd4 {[%clk 0:02:38.5]} 15. cxd4 {[%clk 0:02:26.8]}
15... Ba6 {[%clk 0:02:33.8]} 16. d5 {[%clk 0:02:08.2]} 16... cxd5 {[%clk
0:02:31.5]} 17. exd5 {[%clk 0:02:07.5]} 17... Bxe2 {[%clk 0:02:30.5]} 18. Qxe2
{[%clk 0:01:59.6]} 18... Qxd5 {[%clk 0:02:24.9]} 19. Bxb6 {[%clk 0:01:58.8]}
19... O-O {[%clk 0:02:17.9]} 20. Rfe1 {[%clk 0:01:47.8]} 20... Nf4 {[%clk
0:02:15.9]} 21. Qe3 {[%clk 0:00:59.2]} 21... Rfb8 {[%clk 0:02:00.5]} 22. b4
{[%clk 0:00:53.8]} 22... axb4 {[%clk 0:01:53.9]} 23. a5 {[%clk 0:00:53.5]} 23...
Qb5 {[%clk 0:01:23.4]} 24. Nxe5 {[%clk 0:00:48.6]} 24... Qxe5 {[%clk 0:01:18]}
25. Qxe5 {[%clk 0:00:47.1]} 25... Bxe5 {[%clk 0:01:18.9]} 26. Rxe5 {[%clk
0:00:46.9]} 26... Rxb6 {[%clk 0:01:19.2]} 27. axb6 {[%clk 0:00:42.7]} 27...
Rxa1+ {[%clk 0:01:20.1]} 28. Kh2 {[%clk 0:00:42.8]} 28... Ra8 {[%clk 0:01:15.7]}
29. Re4 {[%clk 0:00:30.3]} 29... Nd5 {[%clk 0:01:08.6]} 30. Rd4 {[%clk
0:00:29.2]} 30... Rb8 {[%clk 0:01:08.3]} 31. Rxd5 {[%clk 0:00:27.6]} 31... Rxb6
{[%clk 0:01:02.4]} 32. Rd2 {[%clk 0:00:26.9]} 32... b3 {[%clk 0:01:02.8]} 33.
Rb2 {[%clk 0:00:27.1]} 33... f5 {[%clk 0:01:03.1]} 34. Kg3 {[%clk 0:00:26.7]}
34... Kf7 {[%clk 0:01:03.4]} 35. Kf4 {[%clk 0:00:27]} 35... Ke6 {[%clk
0:01:03.8]} 36. Ke3 {[%clk 0:00:26.4]} 36... Kd5 {[%clk 0:01:03.9]} 37. Kd3
{[%clk 0:00:23.2]} 37... Kc5 {[%clk 0:01:04.3]} 38. Kc3 {[%clk 0:00:23]} 38...
f4 {[%clk 0:01:01.4]} 39. Rd2 {[%clk 0:00:18]} 39... f3 {[%clk 0:00:34.6]} 40.
g3 {[%clk 0:00:15.2]} 40... g5 {[%clk 0:00:24.7]} 41. Kb2 {[%clk 0:00:14.7]}
41... Kc4 {[%clk 0:00:25.3]} 42. Rd8 {[%clk 0:00:13]} 42... Ra6 {[%clk
0:00:24.1]} 43. Rc8+ {[%clk 0:00:13]} 43... Kd3 {[%clk 0:00:24.5]} 44. Kxb3
{[%clk 0:00:12.4]} 44... Rb6+ {[%clk 0:00:23]} 45. Ka4 {[%clk 0:00:12.2]} 45...
Ke2 {[%clk 0:00:23]} 46. Rc2+ {[%clk 0:00:11.4]} 46... Kf1 {[%clk 0:00:23.5]}
47. Ka5 {[%clk 0:00:11.1]} 47... Rb1 {[%clk 0:00:22.8]} 48. h4 {[%clk
0:00:11.3]} 48... g4 {[%clk 0:00:21.2]} 49. Rc4 {[%clk 0:00:10.2]} 49... h5
{[%clk 0:00:20.8]} 50. Rc2 {[%clk 0:00:09.7]} 50... Kg2 {[%clk 0:00:20.4]} 51.
Rc5 {[%clk 0:00:08.2]} 51... Kxf2 {[%clk 0:00:20]} 52. Rxh5 {[%clk 0:00:08.9]}
52... Kxg3 {[%clk 0:00:20.7]} 53. Rh8 {[%clk 0:00:07.4]} 53... f2 {[%clk
0:00:21.1]} 54. Rf8 {[%clk 0:00:07.7]} 54... f1=Q {[%clk 0:00:21.2]} 55. Rxf1
{[%clk 0:00:06.6]} 55... Rxf1 {[%clk 0:00:22.1]} 0-1